{"text_format":"2","workbook":"xlsx","n_sheets":1,"sheets":["Sheet1"],"not_rendered":{"charts":0,"images":1,"macros":0,"external_links":0,"defined_names":1,"comments":0,"pivot_tables":0},"unopened":[],"bounds":{"document_bytes":16777216,"sheet_cells":100000,"run_cost":"one","rows_first":2000,"rows_last":500,"rows_between":2000,"halvings":0,"cell_chars":16384,"cell_head_chars":4096},"cells_cut":0,"cells_raw":0,"read":"whole","date_system":"1900"}

{"sheet":"Sheet1","index":0,"n_rows":72,"n_cols":9,"rows_kept":72,"cut":false,"hidden":false,"merged":[[71,0,71,2],[44,8,44,9],[45,8,45,9],[46,8,46,9],[47,8,47,9],[48,8,48,9],[63,4,63,5],[62,4,62,5],[57,4,57,5],[49,8,49,9],[51,8,51,9],[52,8,52,9],[64,4,64,5],[65,4,65,5],[60,4,60,5],[61,4,61,5],[2,0,2,1],[41,8,41,9],[42,8,42,9],[39,8,39,9],[40,8,40,9],[30,8,30,9],[23,8,23,9],[25,8,25,9],[28,8,28,9],[35,8,35,9],[24,8,24,9],[31,8,31,9],[32,8,32,9],[14,8,14,9],[21,8,21,9],[26,8,26,9],[0,2,0,9],[18,8,18,9],[17,8,17,9],[2,4,2,5],[1,2,1,3],[1,4,1,5],[15,8,15,9],[16,8,16,9],[2,2,2,3],[11,8,11,9],[12,8,12,9],[1,6,1,9],[9,8,9,9],[8,8,8,9],[6,8,6,9],[4,8,4,9],[61,8,61,9],[70,8,70,9],[71,8,71,9],[66,4,66,5],[68,8,68,9],[69,8,69,9],[2,8,3,9],[43,8,43,9],[20,8,20,9],[34,8,34,9],[37,8,37,9],[38,8,38,9],[22,8,22,9],[27,8,27,9],[29,8,29,9],[33,8,33,9]]}
[null,null,"Website:   motownsoup.com"]
[null,null,"*Full Size                 8 - 1 Cup Servings",null,"**Mini Size             4 - 1 Cup Servings",null,"GF = Gluten Free     V = Vegan     VT = Vegetarian"]
["                                                Good for you, Good for the Community       ",{"$nulls":7},"2025-2026"]
["Available in both Full Size & Mini Soup Mixes",null,"Qty","Price Ea","Qty ","Price Ea","TOTAL"]
["Chicken Noodle Soup Mix",null,null,8,null,5,{"$f":"+(+D5*C5)+(+E5*+F5)","v":0},null,"FUNDRAISER"]
["Chicken Pot Pie Soup Mix",null,null,8,null,5,{"$f":"+(+D6*C6)+(+E6*+F6)","v":0}]
["Corn Bread Mix",null,null,8,null,5,0,null,"Location:"]
["Dill Pickle Soup Mix",null,null,8,null,5,{"$f":"+(+D8*C8)+(+E8*+F8)","v":0}]
["Lasagna Soup Mix (V, VT)",null,null,8,null,5,0,null,"Motown Soup"]
["Lemon Chicken Orzo Mix",null,null,8,null,5,0,null,"(Trinity Lutheran Church)"]
["Lentil Soup Mix (V, VT)",null,null,8,null,5,0]
["Potato Soup Mix (VT)",null,null,8,null,5,0,null,"45160 Van Dyke Ave."]
["Sophie's Noodles w/Vegetable Soup Mix (GF, V, VT)",null,null,8,null,5,0,null,"Utica, MI  48317"]
["Spicy Thai Coconut Soup Mix",null,null,8,null,5,{"$f":"+(+D14*C14)+(+E14*+F14)","v":0}]
["Split Pea Soup Mix (VT)",null,null,8,null,5,0]
["Stuffed Greeen Pepper Soup Mix (V, VT)",null,null,8,null,5,0,null,"Organization Fundraising:"]
["Tomato Basil Soup Mix (VT)",null,null,8,null,5,0]
["Tortilla Soup Mix",null,null,8,null,5,0]
["White Chicken Chili Soup Mix",null,null,8,null,5,0]
["Available only as Full Size Soup Mixes"]
["Beef Barley-Vegetable Soup Mix",null,null,8,null,null,{"$f":"+C21*D21","v":0},null,"Save shipping by picking"]
["Cauliflower Delight Soup Mix",null,null,8,null,null,{"$f":"+C22*D22","v":0},null,"your order up at:"]
["Cheese and Broccoli Soup Mix (VT)",null,null,8,null,null,0,null,"Trinity Lutheran Church"]
["Cheeseburger Soup Mix",null,null,8,null,null,0,null,"45160 Van Dyke Ave."]
["Chili Mix",null,null,8,null,null,0,null,"Utica (Hall Rd @ Van Dyke)"]
["Cream of Jalapeno Soup Mix",null,null,8,null,null,0,null,"(Enter through the sliding glass"]
["Italian Wedding Soup Mix",null,null,8,null,null,0,null,"doors-north side of the building.)"]
["Milestone Minestrone Soup Mix (V, VT)",null,null,8,null,null,0]
["Sister Rita's Bean Soup Mix (V, VT)",null,null,8,null,null,0,null,"Love us for the taste and "]
["Stew Mix","*NEW",null,8,null,null,0,null,"love us for giving ALL of"]
["Dips Mixes & Sides:",{"$nulls":7},"our profits to help the"]
["Dip:  Chili Con Queso",null,null,4,null,null,{"$f":"+D32*C32","v":0},null,"hungry and homeless."]
["Dip:  Chocolate",null,null,4,null,null,{"$f":"+D33*C33","v":0},null,"$2,260,000 in 20 years!"]
["Dip:  Dill",null,null,4,null,null,0]
["Dip:  Garlic","*NEW",null,4,null,null,0,null,"SHIPPING"]
["Dip:  Ranch",null,null,4,null,null,0,null,"to anywhere in the USA"]
["Dip:  Spinach",null,null,4,null,null,0]
["Red Beans and Rice Mix",null,null,8,null,null,0,null,"Place your on-line order at:"]
["Salted Caramel Cocoa Mix (Serve hot or cold)",null,null,10,null,null,0,null,"motownsoup.com"]
["Syrup - Pure Michigan Maple (White label Doodle's 8 oz)",null,null,10,null,null,0,null,"Think of Motown Soup for"]
["Baked Goods:",{"$nulls":7},"birthdays, anniversaries, "]
["Apple Cider Muffin Mix",null,null,8,null,null,0,null,"holidays, sympathy, thinking"]
["Carrot Cake Mix",null,null,8,null,null,0,null,"of you, thank you, employee"]
["Cheese-Garlic Beer Bread Mix",null,null,8,null,null,0,null,"recognition, etc."]
["Chocolate Brownie Mix",null,null,8,null,null,0,null,"Indicate what type"]
["Coffee Cake Mix",null,null,8,null,null,0,null,"of card you want enclosed"]
["Corn Bread Mix",null,null,8,null,null,0,null,"with your gift and how you'd"]
["Karlin's Heavenly Chocolate Cookie Mix",null,null,8,null,null,0,null,"like it signed."]
["Michigan Cherry Scone Mix",null,null,8,null,null,0]
["Oatmeal & Chocolate Chip Cookie Mix",null,null,8,null,null,0,null,"Customer information:"]
["Pancake Mix",null,null,8,null,null,0]
["Peanut Butter Cookie Mix",null,null,8,null,null,0]
["Pumpkin Bread Mix",null,null,8,null,null,0]
["Quick Bread",null,null,8,null,null,0]
["Snickerdoodle Cookie Mix",null,null,8,null,null,0]
["Sugar Cookie Mix",null,null,8,null,null,0]
["Sugar Cookie Mix w/Upper & Lower Peninsula Cookie Cutters",null,null,13,null,null,0]
["Gift Boxes:",null,null,null,"(Circle Box Type)"]
["Large Gift Box:  Mini 10 Variety",null,null,48,null,null,0]
["Large Gift Box:  Mini 12 Variety ",null,null,58,null,null,0]
["Large Gift Box:  Taste of Michigan (Blue Water Bridge)",null,null,48,null,null,0]
["Large Gift Box:  The Mitten",null,null,48,null,null,0]
["Small Gift Box:  Bakery Box",null,null,30,null,null,0]
["Small Gift Box:  Birth of Christ",null,null,30,null,null,0]
["Small Gift Box:  Breakfast Box ",null,null,30,null,null,0]
["Small Gift Box:  Dinner Box-College-Michigan State/U of MI",null,null,30,"MI State/U of M",null,0]
["Small Gift Box:  Dinner Box-Lighthouse/Mack Bridge",null,null,30,"Lighthouse/Mack Br",null,0]
["Small Gift Box:  Sampler Box",null,null,30,null,null,0]
["Small Gift Box:  Sampler Box - Blessed Christmas",null,null,30,null,null,0,null,"Email:"]
["Small Gift Box:  Sampler Box - Merry Christmas",null,null,30,null,null,0,null,"motownsoup@gmail.com"]
[{"$nulls":8},"WEBSITE:"]
["*Full size makes 8 - 1 Cup servings - **Mini size makes 4 - 1 Cup Servings",null,null,null,"TOTAL DUE:",null,{"$f":"SUM(G5:G71)","v":0},null,"motownsoup.com"]